[Event "Czech Youth Championship Open 2023"]
[Site "Teplice"]
[Date "2023.03.13"]
[Round "4.2"]
[White "Hlavac, Rudolf"]
[Black "Pycha, Patrik"]
[Result "0-1"]
[ECO "C06"]
[WhiteElo "1985"]
[BlackElo "2029"]
[Annotator "TA"]
[PlyCount "86"]
[EventDate "2023.03.09"]
[EventType "swiss"]
[EventCountry "CZE"]
[SourceTitle "playchess.com"]
[Source "ChessBase"]
[SourceQuality "1"]
[TimeControl "5400+30"]

{[%evp 29,86,0,0,0,0,-33,0,-13,-14,0,-6,-4,-21,-33,-41,-143,-136,-138,-132,-147,-131,-123,-39,-30,-27,-41,-38,-22,-16,-38,-50,-65,62,-200,-83,-72,-85,-79,-39,-45,-34,-32,0,-1042,-1140,-1117,-1044,-1058,-1047,-1023,-1010,-29980,-29981,-29981,-29982,-29964,-1829,-29990,-29991]} 1. e4 {[%emt 0:06:20]} e6 {[%emt 0:00:05]} 2. d4 {[%emt 0:00:16]} d5 {[%emt 0:00:05]} 3. Nd2 {[%emt 0:00:20]} Nf6 {[%emt 0:00:07]} 4. e5 {[%emt 0:00:19]} Nfd7 {[%emt 0:00:05]} 5. c3 {[%emt 0:00:16]} c5 {[%emt 0:00:04]} 6. Bd3 {[%emt 0:00:09]} Nc6 {[%emt 0:00:05]} 7. Ne2 {[%emt 0:00:23]} cxd4 {[%emt 0:00:04]} 8. cxd4 {[%emt 0:00:17]} f6 {[%emt 0:00:05]} 9. exf6 {[%emt 0:00:11]} Nxf6 {[%emt 0:00:06]} 10. O-O {[%emt 0:00:13]} Bd6 {[%emt 0:00:02]} 11. Nf3 {[%emt 0:00:21]} Qc7 {[%emt 0:00:04]} 12. Nc3 {[%emt 0:00:14]} a6 {[%emt 0:00:04]} 13. Bg5 {[%emt 0:00:12]} O-O {[%emt 0:00:06]} 14. Bh4 {[%emt 0:00:11]} Nh5 {[%emt 0:00:03]} 15. Rc1 {[%emt 0:02:11]} g6 {[%emt 0:00:11]} 16. Re1 {C06: French Tarrasch: 3...Nf6 4 e5 Nfd7 5 Bd3 main lines.} Qg7 {[%emt 0:01:17]} 17. Be2 {[%emt 0:03:10]} Bf4 {[%emt 0:01:53]} 18. Rb1 {[%emt 0:00:12] [#] The position is equal.} h6 $146 {[%emt 0:02:27]} ({Predecessor:} 18... Bd6 19. a3 Rf4 20. Bg3 Nxg3 21. hxg3 Rf6 22. Rc1 Bd7 23. Na4 Raf8 24. Nc5 Bxc5 25. Rxc5 g5 26. g4 Rf4 27. Qb3 Nxd4 28. Qxb7 Nxf3+ 29. Bxf3 Bc8 30. Qxg7+ {½-½ Hlavac,R (2003)-Pycha,P (1994) Czech Fed-ch opA 2013 (8)}) 19. Bg3 {[%emt 0:06:43]} Nxg3 {[%emt 0:00:42]} 20. hxg3 {[%emt 0:00:37]} Bd6 {[%emt 0:00:30][%cal Bf4d6,Bd6c5,Bc5a7][%mdl 32]} 21. a3 {[%emt 0:06:39]} g5 {[%emt 0:02:20]} 22. Bf1 {[%emt 0:12:19]} (22. Na4 $15) 22... g4 $17 {[%emt 0:06:49]} 23. Ne5 {[%emt 0:00:35]} Nxe5 {[%emt 0:02:38]} 24. dxe5 {[%emt 0:00:17]} Bc5 {[%emt 0:01:01]} ({But not} 24... Bxe5 $6 25. Nxd5 Kh8 26. Nf4 (26. Nb6 $2 Bd4 $19) 26... Bxf4 27. gxf4 $14) 25. Re2 {[%emt 0:01:19][%cal Oc3d5]} Kh8 {[%emt 0:05:49] Black is more active.} (25... Ba7 $17 {Hoping for ...Bd7.} 26. Rc1 Bd7 27. Nxd5 exd5 28. Qxd5+ Kh8 29. Qxb7 Bb5 30. Qxg7+ Kxg7) 26. b4 $15 {[%emt 0:05:26]} Ba7 {[%emt 0:00:22]} 27. Na4 $1 {[%emt 0:03:31]} Bd7 {[%emt 0:05:41] [#] Threatens to win with ...Bxa4.} 28. Nc5 {[%emt 0:00:42]} Rac8 {[%emt 0:01:36]} 29. Qd4 {[%emt 0:03:38]} h5 {[%emt 0:03:21]} 30. Rc1 {[%emt 0:04:18]} b6 {[%emt 0:04:54]} ({Better is} 30... Bb5 $15 31. Rec2 Bxf1 32. Rxf1 Rc7) 31. Nb3 $2 {[%emt 0:01:23][%mdl 8192] [#]} (31. Nxd7 $1 $14 {was forced to keep a grip.} Qxd7 32. Rxc8 Rxc8 33. b5) 31... Rxc1 {[%emt 0:01:12]} (31... Ba4 $1 $19 {[%cal Ra4b3] is more deadly.} 32. Rxc8 Rxc8) 32. Nxc1 $17 {[%emt 0:00:05]} Bb5 {[%emt 0:00:24]} 33. Rc2 {[%emt 0:02:53] Black must now prevent Bxb5.} Bxf1 {[%emt 0:03:52]} (33... Bc4 $5 {[%cal Rb6b5]} 34. b5 (34. Bxc4 $2 b5 $19 {[%mdl 64] Discovered Attack}) 34... axb5 $15) 34. Kxf1 {[%emt 0:07:44][%cal Ob4b5]} b5 $36 {[%emt 0:00:20][%mdl 2048] Black has good play.} 35. Qc3 {[%emt 0:00:50]} h4 {[%emt 0:05:07]} 36. Nb3 $2 {[%emt 0:03:55][%mdl 8192]} (36. gxh4 $11 g3 37. f3) 36... Qh7 $19 {[%emt 0:09:48] ...h3 is the strong threat.} 37. gxh4 {[%emt 0:05:54]} g3 {[%emt 0:00:51][%cal Ra7f2]} 38. f3 {[%emt 0:05:06]} Qxh4 {[%emt 0:02:16] ( -> ...Qh1+)} 39. Ke2 Qh1 {[%emt 0:02:51]} 40. Nc5 {[%emt 0:02:56]} Qxg2+ {[%emt 0:00:59]} 41. Kd1 {[%emt 0:01:53]} Qf1+ {[%emt 0:00:47]} 42. Qe1 {[%emt 0:01:56]} g2 {[%emt 0:02:18]} (42... Rxf3 $142 43. a4 g2 44. Rxg2 Qxg2 45. Nb3 Rf1 46. Qxf1 Qxf1+ 47. Kd2 Qf2+ 48. Kd3 Be3 49. a5 Bf4 50. Kc3 Qe2 51. Nd2 Qxd2+ 52. Kb3 Bxe5 53. Ka3 Qb2#) 43. Re2 {[%emt 0:03:49]} g1=Q {Weighted Error Value: White=0.74/Black=0.28 (precise)} 0-1

[Event "Czech Youth Championship Open 2023"]
[Site "Teplice"]
[Date "2023.03.13"]
[Round "4.3"]
[White "Juracak, David"]
[Black "Matejovsky, Ondrej"]
[Result "0-1"]
[ECO "D56"]
[WhiteElo "1820"]
[BlackElo "1931"]
[Annotator "TA"]
[PlyCount "40"]
[EventDate "2023.03.09"]
[EventType "swiss"]
[EventCountry "CZE"]
[SourceTitle "playchess.com"]
[Source "ChessBase"]
[SourceQuality "1"]
[TimeControl "5400+30"]

{[%evp 18,40,30,11,10,7,14,0,0,-4,0,0,0,-36,-13,-62,-45,-63,-97,-162,-165,-465,-463,-446,-462]} 1. d4 {[%emt 0:00:03]} d5 {[%emt 0:00:19]} 2. c4 {[%emt 0:00:09]} e6 {[%emt 0:00:08]} 3. Nf3 {[%emt 0:00:05]} Nf6 {[%emt 0:00:15]} 4. Nc3 {[%emt 0:00:08]} Be7 {[%emt 0:00:20]} 5. Bg5 {[%emt 0:00:42]} h6 {[%emt 0:00:46]} 6. Bh4 {[%emt 0:00:16]} O-O {[%emt 0:00:56]} 7. e3 {[%emt 0:00:21]} Nbd7 {[%emt 0:02:52]} 8. Rc1 {[%emt 0:03:10]} c6 {[%emt 0:08:33]} 9. Bd3 {[%emt 0:01:33]} b6 {[%emt 0:02:58]} 10. O-O {[%emt 0:00:27]} Bb7 {[%emt 0:00:35] D66: Queen's Gambit Declined: Classical: Main Line (7 Rc1 c6 8 Bd3).} 11. Re1 {[%emt 0:08:14]} c5 {[%emt 0:04:31]} 12. cxd5 {[%emt 0:07:26] [#]} Nxd5 $146 {[%emt 0:03:39] The position is equal.} ({Predecessor:} 12... exd5 13. dxc5 Nxc5 14. Bxf6 Bxf6 15. Qc2 Re8 16. Nd4 g6 17. b4 Ne6 18. a4 Nxd4 19. exd4 Rxe1+ 20. Rxe1 Bxd4 {0-1 Mikulas,R (1763)-Gergely,A (1752) HUN-chT U18 Miskolc 2008 (5.13)}) 13. Bxe7 {[%emt 0:01:14]} Qxe7 {[%emt 0:00:26]} 14. Nxd5 {[%emt 0:06:38]} Bxd5 {[%emt 0:01:47]} 15. b3 {[%emt 0:00:45]} cxd4 {[%emt 0:05:07]} 16. e4 {[%emt 0:07:06]} (16. Nxd4 $11 {feels stronger.} Rac8 17. f3) 16... Bb7 $15 {[%emt 0:05:35]} 17. Nxd4 {[%emt 0:09:44]} Nc5 {[%emt 0:04:04] Strongly threatening ...Rad8.} 18. Rc3 {[%emt 0:03:45]} (18. Qd2 $17) 18... Rfd8 $19 {[%emt 0:02:25]} 19. Bb1 $2 {[%emt 0:04:36]} (19. Bc2) 19... Qd7 {[%emt 0:05:49]} 20. b4 {[%emt 0:00:58] [#]} Na4 $1 {[%emt 0:10:39] Weighted Error Value: White=0.49/Black=0.04 (flawless)} ({And not} 20... Qxd4 21. Qxd4 Rxd4 22. bxc5 $17) 0-1

[Event "Czech Youth Championship Open 2023"]
[Site "Teplice"]
[Date "2023.03.13"]
[Round "4.4"]
[White "Pressler, Tobias"]
[Black "Zednicek, Filip"]
[Result "0-1"]
[ECO "D05"]
[WhiteElo "2096"]
[BlackElo "1885"]
[Annotator "TA"]
[PlyCount "82"]
[EventDate "2023.03.09"]
[EventType "swiss"]
[EventCountry "CZE"]
[SourceTitle "playchess.com"]
[Source "ChessBase"]
[SourceQuality "1"]
[TimeControl "5400+30"]

{[%evp 14,82,0,-4,0,-15,0,-36,-34,-41,-42,-59,-48,-85,-79,-238,-115,-270,-266,-267,-262,-266,-268,-262,-263,-326,-312,-346,-343,-397,-379,-384,-384,-437,-443,-422,-419,-508,-503,-493,-495,-497,-433,-405,0,-496,-506,-670,-563,-669,-655,-643,-416,-414,-409,-484,-470,-497,-475,-525,-519,-492,-477,-605,-460,-578,-554,-1541,-1455,-29994,-1105]} 1. d4 {[%emt 0:00:46]} d5 {[%emt 0:00:09]} 2. e3 {[%emt 0:00:10]} Nf6 {[%emt 0:00:05]} 3. Bd3 {[%emt 0:00:06]} e6 {[%emt 0:00:09]} 4. f4 {[%emt 0:00:46]} Be7 {[%emt 0:00:31]} 5. Nf3 {[%emt 0:00:29]} b6 {[%emt 0:00:16]} 6. O-O {[%emt 0:00:40][%cal Bh1f1,Bf1f3,Bf3h3,Bh3h6][%mdl 32]} O-O {[%emt 0:00:16]} 7. Nbd2 {[%emt 0:00:40]} Bb7 {[%emt 0:00:16]} 8. Ne5 {[%emt 0:00:51]} c5 {[%emt 0:02:28] D05: Colle System with ...e6.} 9. c3 {[%emt 0:00:06]} Nbd7 {[%emt 0:01:04]} 10. Rf3 {[%emt 0:04:19]} Ne4 {[%emt 0:01:13] Black is slightly better.} 11. Rh3 {[%emt 0:03:12]} g6 {[%emt 0:09:43]} 12. Qf3 {[%emt 0:20:05][%cal Rd2e4]} f5 {[%emt 0:08:19] [#]} (12... Nxe5 {simplifies} 13. dxe5 Qd7 14. Qe2 Rfd8) 13. Rh6 $146 ({Predecessor:} 13. g4 Nxe5 14. dxe5 Qd7 15. Qe2 Rad8 16. Bb5 Bc6 17. Bxc6 Qxc6 18. g5 Qa4 19. Nb3 {½-½ Garcia Ortega,N (1446)-Avila Fraire,A (1976) Villahermosa Mexican op (Women) 2021 (4)}) 13... Nxe5 {[%emt 0:01:01]} 14. fxe5 {[%emt 0:11:31]} (14. dxe5 $17 Qd7 15. Qe2) 14... cxd4 {[%emt 0:06:56]} (14... Kg7 $19 {and Black stays clearly on top.} 15. Rh3 Ng5) 15. cxd4 $2 {[%emt 0:03:12]} (15. exd4 $17 {was forced.} Bg5 16. Nb3) 15... Kg7 $19 {[%emt 0:02:31]} 16. Rh3 {[%emt 0:07:55]} Ng5 {[%emt 0:01:24][%csl LRf3,LRh3][%mdl 64] [#] Deflection, Double Attack} 17. Qe2 {[%emt 0:00:12]} Nxh3+ {[%emt 0:00:22]} 18. gxh3 {[%emt 0:00:04]} a5 {[%emt 0:10:02]} 19. Nf1 {[%emt 0:01:29]} Qc8 {[%emt 0:01:47]} 20. Bd2 {[%emt 0:02:20]} Ba6 {[%emt 0:02:29]} 21. Rc1 {[%emt 0:01:33]} Bxd3 {[%emt 0:00:09]} 22. Qxd3 {[%emt 0:00:05]} Qd7 {[%emt 0:00:56]} 23. Qb3 {[%emt 0:00:15]} b5 {[%emt 0:01:05][%cal Bb6b5,Bb5b4][%mdl 32]} 24. Ng3 {[%emt 0:00:22]} Rfc8 {[%emt 0:00:37]} 25. Rf1 {[%emt 0:01:44]} b4 {[%emt 0:07:00]} 26. Ne2 {[%emt 0:00:34]} Rc4 27. Nf4 {[%emt 0:05:56]} Bg5 {[%emt 0:10:09]} 28. Nd3 {[%emt 0:00:04]} Be7 {[%emt 0:06:31]} 29. Nf4 {[%emt 0:00:46]} Rac8 {[%emt 0:00:32]} 30. Rf2 {[%emt 0:01:18]} Bh4 {[%emt 0:01:30]} 31. Re2 {[%emt 0:00:54]} Kf7 {[%emt 0:04:55]} 32. Nd3 {[%emt 0:00:19]} Be7 {[%emt 0:00:55]} 33. Ne1 {[%emt 0:01:30]} R4c7 {[%emt 0:04:04]} 34. Qd3 {[%emt 0:02:43]} Qc6 {[%emt 0:02:49]} 35. b3 {[%emt 0:00:57]} Qb6 {[%emt 0:01:18]} 36. Kg2 {[%emt 0:02:48]} Rc6 {[%emt 0:00:11]} 37. Qb1 {[%emt 0:01:42]} Qb5 {[%emt 0:00:36]} 38. Qd1 {[%emt 0:00:13]} R6c7 {[%emt 0:01:34]} 39. Kg1 {[%emt 0:00:44]} Ra8 {[%emt 0:00:23]} 40. Bc1 {[%emt 0:01:41] [#]} Rxc1 $1 {[%emt 0:00:25][%mdl 576] Deflection} 41. Kf1 (41. Qd2 a4) 41... Rcc8 {Black took control after the opening.   Weighted Error Value: White=0.71/Black=0.40} (41... Rxd1 $142 42. Kf2 Bh4+ {[%mdl 64] Skewer, Deflection} 43. Kf3 Rd2 44. Nd3 Qxd3 45. Rxd2 Qf1+ 46. Rf2 Qxf2#) 0-1

[Event "Czech Youth Championship Open 2023"]
[Site "Teplice"]
[Date "2023.03.13"]
[Round "4.5"]
[White "Sadil, Antonin"]
[Black "Mrkvan, Frantisek"]
[Result "1/2-1/2"]
[ECO "B13"]
[WhiteElo "1683"]
[BlackElo "1727"]
[Annotator "NA RC COMBH"]
[PlyCount "76"]
[EventDate "2023.03.09"]
[EventType "swiss"]
[EventCountry "CZE"]
[SourceTitle "playchess.com"]
[Source "ChessBase"]
[SourceQuality "1"]
[TimeControl "5400+30"]

1. e4 {[%emt 0:00:35]} c6 {[%emt 0:00:38]} 2. d4 {[%emt 0:00:08]} d5 {[%emt 0:00:05]} 3. exd5 {[%emt 0:00:06]} cxd5 {[%emt 0:00:05]} 4. Bd3 {[%emt 0:00:08]} Nc6 {[%emt 0:01:04]} 5. c3 {[%emt 0:00:12]} Nf6 {[%emt 0:01:03]} 6. h3 {[%emt 0:00:22]} e6 {[%emt 0:00:56]} 7. Nf3 {[%emt 0:00:32]} Bd6 {[%emt 0:00:23]} 8. O-O {[%emt 0:01:36]} O-O {[%emt 0:00:17]} 9. Re1 {[%emt 0:01:28]} h6 {[%emt 0:01:23]} 10. Nbd2 {[%emt 0:00:42]} Qc7 {[%emt 0:02:54]} 11. Qe2 {[%emt 0:02:28]} Nd7 {[%emt 0:06:27]} 12. Nf1 {[%emt 0:09:51]} Re8 {[%emt 0:01:19]} 13. Nh4 {[%emt 0:03:18]} Nf6 {[%emt 0:01:41]} 14. Bb5 {[%emt 0:06:23]} a6 {[%emt 0:02:06]} 15. Bxc6 {[%emt 0:00:13]} bxc6 {[%emt 0:00:30]} 16. Nf3 {[%emt 0:02:12]} a5 {[%emt 0:04:43]} 17. Ne5 {[%emt 0:01:50]} Ba6 {[%emt 0:03:52]} 18. Qf3 {[%emt 0:00:21]} Bxe5 {[%emt 0:14:41]} 19. dxe5 {[%emt 0:01:22]} Nd7 {[%emt 0:00:24]} 20. Qg3 {[%emt 0:01:17]} Kh7 {[%emt 0:00:15]} 21. b3 {[%emt 0:10:40]} Nc5 {[%emt 0:07:01]} 22. Ba3 {[%emt 0:01:52]} Ne4 {[%emt 0:10:51]} 23. Qe3 {[%emt 0:01:46]} Bxf1 {[%emt 0:00:28]} 24. Bd6 {[%emt 0:06:30]} Nxd6 {[%emt 0:00:15]} 25. exd6 {[%emt 0:00:10]} Qxd6 {[%emt 0:00:04]} 26. Kxf1 {[%emt 0:00:24]} e5 {[%emt 0:02:40]} 27. Rad1 {[%emt 0:00:28]} Qe6 {[%emt 0:00:54]} 28. Qc5 {[%emt 0:01:48]} f5 {[%emt 0:01:58]} 29. Rd4 {[%emt 0:01:23]} exd4 {[%emt 0:11:37]} 30. Rxe6 {[%emt 0:00:36]} Rxe6 {[%emt 0:00:05]} 31. cxd4 {[%emt 0:00:49]} g5 {[%emt 0:01:39]} 32. g3 {[%emt 0:00:53]} a4 {[%emt 0:04:01]} 33. bxa4 {[%emt 0:00:31]} Rxa4 {[%emt 0:01:07]} 34. Qc2 {[%emt 0:00:40]} Rxd4 {[%emt 0:00:21]} 35. Qxf5+ {[%emt 0:00:10]} Rg6 {[%emt 0:00:07]} 36. Qd7+ {[%emt 0:01:47]} Kg8 {[%emt 0:00:42]} 37. Qe8+ {[%emt 0:01:03]} Kh7 {[%emt 0:00:30]} 38. Qd7+ {[%emt 0:01:03]} Kg8 {[%emt 0:00:12]} 1/2-1/2

[Event "Czech Youth Championship Open 2023"]
[Site "Teplice"]
[Date "2023.03.14"]
[Round "5.1"]
[White "Mrkvan, Frantisek"]
[Black "Broz, Petr"]
[Result "1-0"]
[ECO "C11"]
[WhiteElo "1727"]
[BlackElo "1993"]
[Annotator "TA"]
[PlyCount "41"]
[EventDate "2023.03.09"]
[EventType "swiss"]
[EventCountry "CZE"]
[SourceTitle "playchess.com"]
[Source "ChessBase"]
[SourceQuality "1"]
[TimeControl "5400+30"]

{[%evp 16,41,16,16,22,17,15,10,47,22,44,24,360,356,328,325,425,428,421,429,455,424,633,625,616,604,643,620]} 1. e4 {[%emt 0:00:04][%cal Be2e4,Be4e5][%mdl 32]} e6 {[%emt 0:00:16]} 2. d4 {[%emt 0:00:07]} d5 {[%emt 0:00:12]} 3. Nc3 {[%emt 0:00:34]} Nf6 {[%emt 0:00:24]} 4. e5 {[%emt 0:00:23]} Nfd7 {[%emt 0:00:14]} 5. f4 {[%emt 0:00:37]} c5 {[%emt 0:01:38]} 6. Nf3 {[%emt 0:00:12]} Nc6 {[%emt 0:00:14]} 7. Be3 {[%emt 0:00:15]} Be7 {[%emt 0:00:10]} 8. Qd2 {[%emt 0:00:16]} O-O {[%emt 0:00:17]} 9. dxc5 {[%emt 0:00:28]} Nxc5 {[%emt 0:00:09] C11: French: Classical System: 4 e5 and 4 Bg5 dxe4.} 10. O-O-O {[%emt 0:00:35]} a6 {[%emt 0:00:30]} 11. Kb1 {[%emt 0:01:38]} b5 {[%emt 0:01:44] The position is equal.} 12. Bxc5 {[%emt 0:03:16] 12.Qf2 is vanishing.} Bxc5 {[%emt 0:00:23]} 13. Bd3 {[%emt 0:00:16][%cal Od3h7] [#] aiming for Bxh7+!} Qb6 $146 {[%emt 0:04:24][%mdl 8192] [#]} (13... Qc7 $11 {and Black has nothing to worry.}) ({Predecessor:} 13... f5 14. exf6 Qxf6 15. g3 Bb4 16. Ng5 g6 17. Rhe1 d4 18. Nce4 Qg7 19. Qe2 Bxe1 20. Rxe1 {1-0 Preotu,R (2487)-Nyzhnyk,I (2665) US Collegiate Blitz 2020 (7)}) 14. Bxh7+ $1 $18 {[%emt 0:06:00][%mdl 576] Decoy} Kh8 {[%emt 0:05:25]} (14... Kxh7 $2 15. Ng5+ Kg8 16. Qd3 $18) 15. Bd3 {[%emt 0:06:27]} Be3 {[%emt 0:00:29]} 16. Qe1 {[%emt 0:00:10] White is clearly winning.} Bf2 {[%emt 0:03:55] Inhibits Qh4+.} 17. Qe2 {[%emt 0:00:34]} Qe3 {[%emt 0:00:25] [#]} 18. Qf1 {[%emt 0:06:25]} Nd4 {[%emt 0:00:10]} (18... b4 $142) 19. Nxd4 Qxd4 {[%emt 0:00:05]} 20. Qe2 {[%emt 0:01:17] Intending Qh5+ and mate.} f5 {[%emt 0:01:17]} 21. Rhf1 {[%emt 0:06:31] White took control after the opening.   Weighted Error Value: White=0.00 (flawless) /Black=0.88} 1-0

[Event "Czech Youth Championship Open 2023"]
[Site "Teplice"]
[Date "2023.03.14"]
[Round "5.2"]
[White "Zednicek, Filip"]
[Black "Sadil, Antonin"]
[Result "0-1"]
[ECO "B14"]
[WhiteElo "1885"]
[BlackElo "1683"]
[Annotator "NA RC COMBH"]
[PlyCount "58"]
[EventDate "2023.03.09"]
[EventType "swiss"]
[EventCountry "CZE"]
[SourceTitle "playchess.com"]
[Source "ChessBase"]
[SourceQuality "1"]
[TimeControl "5400+30"]

1. e4 {[%emt 0:00:01]} c6 {[%emt 0:00:14]} 2. d4 {[%emt 0:00:06]} d5 {[%emt 0:00:05]} 3. exd5 {[%emt 0:00:04]} cxd5 {[%emt 0:00:05]} 4. c4 {[%emt 0:00:03]} Nf6 {[%emt 0:00:08]} 5. Nc3 {[%emt 0:00:04]} g6 {[%emt 0:00:08]} 6. Bg5 {[%emt 0:00:09]} Bg7 {[%emt 0:00:14]} 7. Nf3 {[%emt 0:05:09]} dxc4 {[%emt 0:02:04]} 8. Bxc4 {[%emt 0:00:09]} O-O {[%emt 0:01:00]} 9. O-O {[%emt 0:00:14]} Bg4 {[%emt 0:02:40]} 10. d5 {[%emt 0:00:50]} Nbd7 {[%emt 0:01:03]} 11. h3 {[%emt 0:00:28]} Bxf3 {[%emt 0:02:07]} 12. Qxf3 {[%emt 0:00:25]} Ne5 {[%emt 0:00:33]} 13. Qe2 {[%emt 0:00:13]} Nxc4 {[%emt 0:00:30]} 14. Qxc4 {[%emt 0:00:02]} Rc8 {[%emt 0:01:40]} 15. Qb3 {[%emt 0:00:42]} Qd7 {[%emt 0:02:38]} 16. Rfe1 {[%emt 0:00:38]} Rfd8 {[%emt 0:04:41]} 17. Rad1 {[%emt 0:01:12]} b6 {[%emt 0:01:36]} 18. Re2 {[%emt 0:04:51]} Qf5 {[%emt 0:02:12]} 19. Bc1 {[%emt 0:03:33]} Rd7 {[%emt 0:04:07]} 20. Rde1 {[%emt 0:02:49]} Nxd5 {[%emt 0:01:33]} 21. g4 {[%emt 0:02:06]} Nxc3 {[%emt 0:00:20]} 22. gxf5 {[%emt 0:00:15]} Nxe2+ {[%emt 0:00:21]} 23. Rxe2 {[%emt 0:00:02]} Rxc1+ {[%emt 0:00:18]} 24. Kg2 {[%emt 0:00:17]} Bf6 {[%emt 0:07:19]} 25. fxg6 {[%emt 0:00:42]} hxg6 {[%emt 0:00:13]} 26. Qa4 {[%emt 0:01:09]} Rcc7 {[%emt 0:04:21]} 27. Qf4 {[%emt 0:11:03]} Kg7 {[%emt 0:02:57]} 28. b3 {[%emt 0:00:36]} Rc5 {[%emt 0:01:27]} 29. Rd2 {[%emt 0:05:16]} Bg5 {[%emt 0:01:30]} 0-1